bitfinex/quotes_ETHUSD_20250217
["timestamp","ask_amount","ask_price","bid_price","bid_amount"]
[1739794718237,3.61194,2768.6,2768.1,5.40111]
[1739794718387,3.61212,2768.5,2768.1,1.7886]
[1739794718594,1.2085,2769.0,2768.1,2.62873]
[1739794718814,3.61234,2768.3,2768.1,1.7886]
[1739794719048,3.61209,2768.5,2768.2,0.06016778]
[1739794719205,3.61188,2768.7,2768.2,0.06016778]
[1739794719400,3.61193,2768.6,2768.2,0.06016778]
[1739794719639,3.61207,2768.5,2768.2,0.06016778]
[1739794719790,7.22422,2768.5,2768.2,0.06016778]
[1739794719991,1.2085,2769.0,2768.3,0.55]
[1739794720223,3.61169,2768.8,2768.5,1.2246]
[1739794720421,3.61159,2768.9,2768.5,1.2246]
[1739794720623,1.216,2769.3,2768.6,0.06014149]
[1739794720842,3.61147,2769.0,2768.7,0.55]
[1739794721041,3.61174,2768.8,2768.6,0.06014149]
[1739794721277,3.61154,2768.9,2768.8,0.06012835]
[1739794721391,1.216,2769.3,2768.7,0.61013492]
[1739794721392,3.61139,2769.1,2768.7,0.61013492]
[1739794721589,7.22277,2769.1,2768.8,0.06012835]
[1739794722016,7.22277,2769.1,2768.7,1.43109552]
[1739794722017,3.61142,2769.0,2768.7,1.43109552]
[1739794722227,3.61131,2769.1,2768.9,0.06012179]
[1739794722534,3.61131,2769.1,2769.0,0.06011522]
[1739794722899,3.61131,2769.1,2768.7,1.43109552]
[1739794723093,3.61131,2769.1,2768.8,0.06012835]
[1739794723292,3.61131,2769.1,2768.7,1.43109552]
[1739794723517,3.61096,2769.4,2769.0,1.6981]
[1739794723722,0.1514834,2769.5,2769.0,1.6981]
[1739794723948,0.1514834,2769.5,2769.1,0.06010865]
[1739794724260,3.7622734,2769.5,2769.1,0.06010865]
[1739794724436,0.1514834,2769.5,2769.1,0.96182149]
[1739794724753,3.61115,2769.2,2769.1,0.06010865]
[1739794725097,3.61115,2769.2,2768.8,1.1385]
[1739794725298,3.61142,2769.0,2768.9,0.06012179]
[1739794725901,3.61172,2768.8,2768.4,1.199]
[1739794726336,3.61189,2768.7,2768.4,1.199]
[1739794726929,3.61154,2768.9,2768.4,1.199]
[1739794727102,3.61181,2768.7,2768.4,1.98373693]
[1739794727439,3.61196,2768.6,2768.4,1.98373693]
[1739794727603,3.61181,2768.7,2768.4,1.98373693]
[1739794728044,3.61162,2768.9,2768.4,5.59585693]
[1739794728237,1.159,2769.3,2768.5,0.55]
[1739794728427,3.61127,2769.2,2768.8,1.2044]
[1739794729360,7.22251,2769.2,2768.8,1.2044]
[1739794729545,3.61103,2769.3,2768.8,4.85215389]
[1739794729751,0.1514834,2769.5,2768.9,0.55]
[1739794729923,7.22242,2769.2,2768.9,1.03521539]
[1739794730122,3.61128,2769.1,2768.9,0.55]
[1739794730438,3.61097,2769.4,2768.9,0.55]
[1739794730640,3.61097,2769.4,2768.9,4.16151]
[1739794730834,7.22198,2769.4,2768.9,4.16151]
[1739794731139,3.61103,2769.3,2768.9,4.16151]
[1739794731340,3.61103,2769.3,2768.9,5.03453203]
[1739794731541,3.61126,2769.2,2768.9,0.55]
[1739794731757,3.6114,2769.1,2768.9,0.55]
[1739794732075,3.61141,2769.1,2768.8,1.2044]
[1739794732235,3.61149,2769.0,2768.6,4.44117369]
[1739794732433,3.61134,2769.1,2768.7,0.55]
[1739794732633,3.61134,2769.1,2768.7,1.77150637]
[1739794733240,3.61127,2769.2,2768.7,1.77150637]
[1739794733431,1.2089,2769.4,2768.7,1.77150637]
[1739794733672,3.61154,2768.9,2768.7,0.55]
[1739794733972,3.61154,2768.9,2768.8,0.05889596]
[1739794734173,3.61154,2768.9,2768.5,3.0]
[1739794734331,3.61154,2768.9,2768.8,0.05888947]
[1739794734535,3.61154,2768.9,2768.4,8.87]
[1739794734875,3.6118,2768.7,2768.4,8.87]
[1739794735571,3.6118,2768.7,2768.4,0.55]
[1739794736274,3.6118,2768.7,2768.4,1.970179]
[1739794736950,3.612,2768.6,2768.4,1.970179]
[1739794737448,3.61168,2768.8,2768.4,1.970179]
[1739794738564,3.61193,2768.6,2768.4,1.970179]
[1739794738768,1.1998,2769.1,2768.4,1.970179]
[1739794738971,3.61192,2768.7,2768.4,1.970179]
[1739794739191,3.61196,2768.6,2768.4,0.55]
[1739794739396,3.61176,2768.8,2768.4,0.55]
[1739794739571,3.61185,2768.7,2768.4,0.55]
[1739794740186,3.61219,2768.4,2768.0,1.2452]
[1739794740389,3.61201,2768.6,2768.0,1.2452]
[1739794740569,3.61207,2768.5,2768.0,4.85782]
[1739794740764,3.61201,2768.6,2768.1,0.55]
[1739794741094,3.61201,2768.6,2768.1,4.16249]
[1739794741295,3.61155,2768.9,2768.2,1.28132138]
[1739794741468,3.61115,2769.2,2768.7,3.61172]
[1739794741791,3.61128,2769.1,2768.6,7.77384]
[1739794741983,3.61128,2769.1,2768.6,4.16192]
[1739794742177,3.61128,2769.1,2768.6,4.16184]
[1739794742894,3.61109,2769.3,2768.9,1.2452]
[1739794743519,0.1514834,2769.5,2769.0,0.55]
[1739794743677,0.1514834,2769.5,2769.2,0.55]
[1739794743933,3.7623134,2769.5,2769.2,0.55]
[1739794744549,0.1514834,2769.5,2769.2,1.390626]
[1739794746452,3.7622534,2769.5,2769.2,1.390626]
[1739794746951,3.7622534,2769.5,2769.1,1.2449]
[1739794746952,3.61102,2769.3,2769.1,1.2449]
[1739794747136,3.61124,2769.2,2768.9,8.87]
[1739794747562,3.61124,2769.2,2768.9,0.55]
[1739794747856,3.61151,2769.0,2768.7,8.87]
[1739794748075,3.61188,2768.7,2768.1,8.87]
[1739794748366,3.61174,2768.8,2768.3,3.61232]
[1739794748921,3.61174,2768.8,2768.3,3.6484392]
[1739794749115,3.61174,2768.8,2768.4,0.0569184]
[1739794749315,7.22349,2768.8,2768.4,0.0569184]
[1739794749576,3.61188,2768.7,2768.4,0.0569184]
[1739794749772,3.61188,2768.7,2768.3,0.55]
[1739794749976,3.61174,2768.8,2768.5,0.05691183]
[1739794750175,3.61188,2768.7,2768.5,0.05691183]
[1739794750467,3.61188,2768.7,2768.3,0.55]
[1739794750624,3.61174,2768.8,2768.6,0.05698305]
[1739794750826,3.61157,2768.9,2768.4,3.61216]
[1739794751065,3.6115,2769.0,2768.4,3.61216]
[1739794751066,3.6115,2769.0,2768.7,0.05697648]
[1739794751384,3.61167,2768.8,2768.3,7.1622]
[1739794751542,3.61166,2768.9,2768.3,7.1622]
[1739794751725,3.61166,2768.9,2768.4,3.61217]
[1739794752122,4.86237,2769.2,2768.3,3.55]
[1739794752320,3.61181,2768.7,2768.3,3.55]
[1739794752828,0.486237,2769.1,2768.3,7.16223]
[1739794753030,3.6117,2768.8,2768.3,7.16223]
[1739794753546,3.61154,2768.9,2768.4,3.61213]
[1739794753748,3.61161,2768.9,2768.3,7.16222]
[1739794753934,3.61154,2768.9,2768.4,3.61214]
[1739794754240,3.61178,2768.8,2768.3,7.16222]
[1739794754647,3.61178,2768.8,2768.3,12.30288903]
[1739794754845,3.61178,2768.8,2768.4,3.61217]
[1739794755058,3.61178,2768.8,2768.3,8.69063903]
[1739794755491,4.86245,2769.2,2768.7,3.61177]
[1739794755695,3.61135,2769.1,2768.5,7.5262503]
[1739794755833,3.61151,2769.0,2768.5,12.46093723]
[1739794756229,3.61151,2769.0,2768.5,5.48463693]
[1739794756443,3.61151,2769.0,2768.5,14.35463693]
[1739794756672,3.61151,2769.0,2768.7,0.55]
[1739794756971,3.61128,2769.1,2768.7,0.55]
[1739794757849,3.61128,2769.1,2768.7,1.98546169]
[1739794758370,1.3172834,2769.5,2768.7,5.59725169]
[1739794758573,1.3172834,2769.5,2768.8,4.81751]
[1739794758757,3.61115,2769.2,2768.8,4.81751]
[1739794758964,3.61115,2769.2,2768.8,5.8626075]
[1739794759356,3.61121,2769.2,2768.8,2.2509975]
[1739794759962,1.3172834,2769.5,2768.8,2.28711076]
[1739794760134,1.3172834,2769.5,2768.8,2.2509975]
[1739794760495,3.61131,2769.1,2768.8,2.2509975]
[1739794761137,3.61146,2769.0,2768.8,2.2509975]
[1739794761337,7.22271,2769.1,2768.8,1.2059]
[1739794761568,3.61131,2769.1,2768.8,1.2059]
[1739794761956,3.61115,2769.2,2768.8,1.2059]
[1739794762162,3.61115,2769.2,2768.8,1.2420122]
[1739794762503,3.61102,2769.3,2769.0,0.55]
[1739794763996,3.6109,2769.4,2769.1,0.05675566]
[1739794764202,3.7622734,2769.5,2769.1,0.05675566]
[1739794764398,0.1514834,2769.5,2769.1,3.66802566]
[1739794764561,3.7622834,2769.5,2769.1,3.66802566]
[1739794764762,3.61102,2769.3,2769.1,0.05675566]
[1739794764962,3.61115,2769.2,2769.1,0.05675566]
[1739794765170,3.61115,2769.2,2768.8,1.2059]
[1739794765374,3.61117,2769.2,2769.1,0.05675566]
[1739794765576,3.61117,2769.2,2768.8,1.2059]
[1739794765795,3.61117,2769.2,2769.1,0.05675566]
[1739794765998,3.61117,2769.2,2768.8,2.403856]
[1739794766177,3.61136,2769.1,2768.8,2.403856]
[1739794766722,3.61148,2769.0,2768.8,1.2059]
[1739794767072,3.61136,2769.1,2768.8,1.2059]
[1739794767270,3.61151,2769.0,2768.8,1.2059]
[1739794767708,3.61134,2769.1,2768.8,1.2059]
[1739794768006,3.61143,2769.0,2768.7,0.55]
[1739794768405,3.6118,2768.7,2768.3,1.2268]
[1739794768617,3.6119,2768.7,2768.3,1.2268]
[1739794769106,3.6119,2768.7,2768.4,0.55]
[1739794769814,3.61194,2768.6,2768.4,0.55]
[1739794769996,3.61212,2768.5,2768.3,0.55]
[1739794770228,3.61176,2768.8,2768.3,0.55]
[1739794770522,7.22355,2768.8,2768.4,0.355]
[1739794770726,3.61186,2768.7,2768.4,0.355]
[1739794771101,3.61176,2768.8,2768.4,0.355]
[1739794771303,3.6118,2768.7,2768.4,0.355]
[1739794773326,3.61176,2768.8,2768.4,0.355]
[1739794773531,3.61181,2768.7,2768.4,0.355]
[1739794774036,3.61176,2768.8,2768.4,0.355]
[1739794774246,3.6115,2769.0,2768.4,3.96718]
[1739794774653,3.61117,2769.2,2768.7,0.55]
[1739794774947,3.61165,2768.9,2768.6,0.55]
[1739794775490,1.1984,2769.4,2768.5,1.1431]
[1739794775794,7.22378,2768.7,2768.5,1.1431]
[1739794776424,3.61193,2768.6,2768.3,1.6931]
[1739794776630,3.61193,2768.6,2768.3,2.523645]
[1739794777353,3.61227,2768.4,2768.0,1.1431]
[1739794777905,3.61227,2768.4,2768.0,4.1431]
[1739794778437,3.61227,2768.4,2768.0,7.75579]
[1739794778814,3.61227,2768.4,2768.1,0.05725587]
[1739794781142,3.61175,2768.8,2768.1,0.05725587]
[1739794781316,3.61189,2768.7,2768.2,0.78130659]
[1739794781510,3.61206,2768.5,2768.2,0.78130659]
[1739794781710,7.22421,2768.5,2768.3,0.05724272]
[1739794781935,3.61206,2768.5,2768.3,0.05724272]
[1739794782131,3.61206,2768.5,2768.0,7.75578]
[1739794782306,3.61206,2768.5,2768.4,0.05723615]
[1739794782509,3.61206,2768.5,2768.0,7.75575]
[1739794782740,3.61206,2768.5,2768.4,0.05723615]
[1739794782946,3.61206,2768.5,2768.0,7.75575]
[1739794783144,3.61206,2768.5,2768.4,0.05723615]
[1739794783348,3.61206,2768.5,2768.0,7.75575]
[1739794783546,3.61203,2768.6,2768.4,0.05723615]
[1739794783711,3.61189,2768.7,2768.1,3.61249]
[1739794784046,3.61193,2768.6,2768.1,5.275049]
[1739794784248,3.61208,2768.5,2768.2,0.05724929]
[1739794784809,3.61219,2768.4,2768.2,0.05724929]
[1739794785247,3.61208,2768.5,2768.2,0.05724929]
[1739794787444,3.61196,2768.6,2768.2,0.05724929]
[1739794787749,3.61226,2768.4,2768.2,0.05724929]
[1739794787923,7.22457,2768.4,2768.0,4.1431]
[1739794788127,3.61226,2768.4,2768.3,0.05732704]
[1739794788328,3.61226,2768.4,2768.0,6.221983]
[1739794788526,3.61226,2768.4,2768.3,0.05732704]
[1739794788728,3.61226,2768.4,2768.0,9.834683]
[1739794788929,3.61226,2768.4,2768.3,0.05732704]
[1739794789355,3.61226,2768.4,2768.0,9.834683]
[1739794789520,3.61226,2768.4,2768.3,0.05732704]
[1739794789717,3.61195,2768.6,2768.0,9.834683]
[1739794789917,7.22397,2768.6,2768.3,0.05732704]
[1739794790120,3.61194,2768.6,2768.2,3.61243]
[1739794790335,3.61194,2768.6,2768.4,0.05732047]
[1739794790533,3.61182,2768.7,2768.3,3.66958704]
[1739794790717,3.61182,2768.7,2768.5,1.2281139]
[1739794790942,3.61182,2768.7,2768.5,1.1708]
[1739794791140,3.61182,2768.7,2768.6,0.05730733]
[1739794792558,3.61173,2768.8,2768.6,0.05730733]
[1739794792948,3.61155,2768.9,2768.6,0.05730733]
[1739794793146,3.61177,2768.8,2768.6,0.05730733]
[1739794793548,3.61155,2768.9,2768.6,0.05730733]
[1739794793743,3.61167,2768.8,2768.6,0.05730733]
[1739794794655,3.61168,2768.8,2768.6,0.05730733]
[1739794795358,3.6118,2768.7,2768.6,0.05730733]
[1739794796184,3.6118,2768.7,2768.3,1.1604]
[1739794796485,3.6118,2768.7,2768.6,0.05743056]
[1739794796622,3.6118,2768.7,2768.3,2.88594]
[1739794796828,3.6118,2768.7,2768.6,0.05734624]
[1739794797163,3.6118,2768.7,2768.3,1.1604]
[1739794797367,3.6118,2768.7,2768.6,0.05734624]
[1739794797525,3.6118,2768.7,2768.3,1.1604]
[1739794797863,1.2297,2768.6,2768.1,10.0304]
[1739794798059,3.61284,2767.9,2767.8,1.1604]
[1739794798268,3.61284,2767.9,2767.5,13.64375]
[1739794798453,3.61284,2767.9,2767.5,10.0304]
[1739794799027,3.61284,2767.9,2767.5,13.64375]
[1739794799228,3.61288,2767.9,2767.5,10.0304]
[1739794800054,1.2297,2768.1,2767.7,3.61304]
[1739794800272,1.2297,2768.1,2767.5,10.0304]
[1739794800273,4.8424,2768.1,2767.6,3.61314]
[1739794800472,4.8424,2768.1,2767.6,3.61317]
[1739794801184,4.8424,2768.1,2767.5,10.0304]
[1739794801185,3.6128,2768.0,2767.5,13.64375]
[1739794801362,4.8424,2768.1,2767.6,7.2264]
[1739794801562,4.8424,2768.1,2767.6,3.6132]
[1739794801961,1.2297,2768.1,2767.1,3.61379]
[1739794802161,0.0075,2768.0,2767.1,8.87]
[1739794802349,3.61357,2767.4,2767.0,1.2269]
[1739794802550,3.61357,2767.4,2767.0,1.710998]
[1739794802860,7.22669,2767.6,2767.0,1.710998]
[1739794803064,3.61334,2767.6,2767.0,5.325008]
[1739794803265,3.61337,2767.5,2767.0,1.710998]
[1739794804154,3.61332,2767.6,2767.0,1.710998]
[1739794804379,3.61351,2767.4,2767.0,1.710998]
[1739794804778,5.50594326,2767.9,2767.1,3.61389]
[1739794804779,3.6133,2767.6,2767.1,3.61389]
[1739794805087,3.61339,2767.5,2767.0,1.710998]
[1739794805384,3.61339,2767.5,2767.1,0.67623698]
[1739794805553,3.6133,2767.6,2767.1,0.67623698]
[1739794805749,1.89307326,2767.9,2766.8,8.87]
[1739794805750,1.2529,2767.8,2766.8,8.87]
[1739794805954,3.61409,2767.0,2766.8,8.87]
[1739794806693,3.61415,2766.9,2766.8,8.87]
[1739794806891,3.61409,2767.0,2766.8,8.87]
[1739794807052,3.61384,2767.2,2766.8,8.87]
[1739794807253,1.2454,2767.3,2766.8,9.757]
[1739794807457,3.61363,2767.3,2766.9,1.1988]
[1739794808374,3.61356,2767.4,2766.9,1.1988]
[1739794808585,3.61373,2767.3,2766.9,1.1988]
[1739794808769,3.61356,2767.4,2766.9,1.1988]
[1739794809088,4.85871,2767.6,2767.1,3.61387]
[1739794809600,3.61318,2767.7,2767.2,0.05122272]
[1739794810104,3.61326,2767.6,2767.2,0.05122272]
[1739794810867,4.78131,2768.0,2767.5,3.61335]
[1739794811070,4.78131,2768.0,2767.6,0.05115747]
[1739794811273,3.61296,2767.9,2767.6,0.05115747]
[1739794811602,3.61305,2767.8,2767.6,0.05115747]
[1739794811973,3.61305,2767.8,2767.4,1.2088]
[1739794811974,3.61296,2767.9,2767.4,4.82225]
[1739794812297,3.61267,2768.1,2767.5,3.61331]
[1739794812600,3.61272,2768.0,2767.5,3.61331]
[1739794812906,3.61259,2768.1,2767.5,3.61327]
[1739794813402,3.61271,2768.0,2767.5,3.61336]
[1739794813702,3.61271,2768.0,2767.5,4.6017868]
[1739794813911,3.613,2767.8,2767.5,0.9884268]
[1739794814206,3.613,2767.8,2767.4,2.107378]
[1739794814703,7.22552,2768.0,2767.4,5.720748]
[1739794814867,3.61271,2768.0,2767.4,5.720748]
[1739794815070,3.61285,2767.9,2767.4,5.720798]
[1739794815415,1.1397,2768.2,2767.2,1.1902]
[1739794815416,3.61315,2767.7,2767.2,1.1902]
[1739794815576,3.61315,2767.7,2767.1,5.33]
[1739794815577,1.185,2767.7,2767.1,5.33]
[1739794815767,0.0075,2768.1,2767.1,8.94387]
[1739794815768,3.61335,2767.6,2767.1,8.94387]
[1739794815963,1.185,2767.9,2767.1,8.94387]
[1739794816164,3.61331,2767.6,2767.1,8.94387]
[1739794816404,3.61334,2767.6,2767.1,8.94387]
[1739794816567,3.61297,2767.8,2767.1,12.55764]
[1739794816769,3.61279,2768.0,2767.4,3.61338]
[1739794817078,3.61345,2767.5,2767.2,1.2175]
[1739794817504,7.2269,2767.5,2767.1,5.33]
[1739794817801,3.61345,2767.5,2767.0,4.8067]
[1739794818106,3.6135,2767.4,2767.0,4.8067]
[1739794818306,3.61345,2767.5,2767.0,4.8067]
[1739794819055,3.6135,2767.4,2767.0,4.8067]
[1739794819208,3.61369,2767.3,2767.0,1.1927]
[1739794820004,3.61412,2767.0,2766.8,5.33]
[1739794821009,3.61368,2767.3,2766.8,8.94422]
[1739794821374,3.61368,2767.3,2766.8,5.33]
[1739794821611,3.61348,2767.5,2766.9,4.84227]
[1739794821975,0.482858,2767.5,2766.8,5.33]
[1739794822171,3.61396,2767.1,2766.8,5.33]
[1739794822606,1.1721,2767.6,2766.8,5.33]
[1739794822810,3.61356,2767.4,2767.0,1.1859]
[1739794823012,3.61371,2767.3,2767.0,1.1859]
[1739794823218,3.61356,2767.4,2767.0,1.1859]
[1739794823379,4.78593,2767.2,2766.8,5.33]
[1739794823910,1.2132,2767.5,2766.9,0.05134635]
[1739794824103,4.82667,2767.5,2767.0,4.82744]
[1739794824480,4.82667,2767.5,2767.1,0.05126826]
[1739794824676,1.2132,2767.5,2767.1,0.05126826]
[1739794824881,4.82657,2767.5,2766.8,5.33]
[1739794825081,3.6135,2767.4,2766.9,3.66536142]
[1739794825282,3.61357,2767.4,2766.9,0.05128142]
[1739794825707,4.82657,2767.5,2766.9,3.66537142]
[1739794825907,4.82454,2767.7,2767.0,3.61401]
[1739794826084,4.82454,2767.7,2767.2,3.61372]
[1739794826282,4.82454,2767.7,2767.3,0.05125511]
[1739794826530,4.82454,2767.7,2767.1,1.2005]
[1739794826816,4.82454,2767.7,2767.2,3.61374]
[1739794826994,3.61314,2767.7,2767.2,3.61374]
[1739794827194,7.22633,2767.7,2767.3,0.05120317]
[1739794827418,7.22633,2767.7,2767.2,3.61374]
[1739794827808,3.61314,2767.7,2767.3,0.05120317]
[1739794828009,3.61333,2767.6,2767.1,4.81435]
[1739794828313,3.61333,2767.6,2767.2,0.05120975]
[1739794830222,3.61336,2767.5,2767.2,0.05120975]
[1739794832219,3.61336,2767.5,2767.2,0.09161109]
[1739794833313,3.61362,2767.4,2767.2,0.09161109]
[1739794833686,3.61362,2767.4,2766.9,8.41032]
[1739794833948,3.61362,2767.4,2767.0,0.09162873]
[1739794834226,3.61369,2767.3,2767.0,0.09162873]
[1739794834386,3.61362,2767.4,2767.0,0.09162873]
[1739794835243,3.61331,2767.6,2767.0,0.09162873]
[1739794835527,3.61363,2767.3,2767.0,0.09162873]
[1739794836293,0.722708,2767.3,2767.0,0.09162873]
[1739794836524,3.61389,2767.1,2766.8,5.33]
[1739794836729,3.61402,2767.0,2766.5,4.76956]
[1739794837413,1.2304,2767.0,2766.2,1.155]
[1739794837589,3.61474,2766.5,2766.2,1.155]
[1739794838645,1.1693,2766.4,2765.8,4.75507]
[1739794838847,3.61501,2766.3,2765.8,1.1395]
[1739794839147,3.6151,2766.2,2765.9,0.08536984]
[1739794839346,3.61472,2766.5,2765.9,3.70074984]
[1739794839549,3.61472,2766.5,2766.0,3.61525]
[1739794839722,7.22949,2766.5,2766.0,3.61525]
[1739794839911,7.22949,2766.5,2766.1,0.08589285]
[1739794840244,4.78375,2766.7,2766.1,0.08589285]
[1739794840443,3.61422,2766.9,2766.2,1.2296]
[1739794840609,4.41793154,2766.8,2766.3,3.61493]
[1739794840810,3.61429,2766.8,2766.3,3.70080676]
[1739794841440,3.61429,2766.8,2766.3,3.70072676]
[1739794841753,7.22797,2767.1,2766.6,1.1491]
[1739794841950,1.1516,2767.5,2766.7,3.61433]
[1739794842250,3.6137,2767.3,2766.7,3.70025256]
[1739794842548,4.09023,2767.3,2766.7,3.70025256]
[1739794842744,0.47653,2767.3,2766.7,3.70025256]
[1739794843044,3.61369,2767.3,2766.8,3.61425]
[1739794843412,3.61369,2767.3,2766.9,0.08625058]
[1739794843646,3.61376,2767.2,2766.9,0.08625058]
[1739794843849,4.76499,2767.5,2767.0,3.61389]
[1739794844071,4.76499,2767.5,2767.1,1.2355]
[1739794844252,4.76499,2767.5,2767.1,1.3217345]
[1739794845622,8.37847,2767.5,2767.1,1.3217345]
[1739794845931,1.2434,2767.8,2767.4,3.61339]
[1739794846118,3.61292,2767.9,2767.1,1.3217345]
[1739794846322,1.2509,2768.0,2767.5,0.08592309]
[1739794846522,5.343286,2768.0,2767.6,1.179]
[1739794846829,5.343286,2768.0,2767.6,1.26468132]
[1739794846830,4.099886,2768.0,2767.6,1.26468132]
[1739794847184,3.61958,2768.5,2767.6,1.26468132]
[1739794847185,4.8557,2768.4,2767.6,1.26468132]
[1739794847335,3.61212,2768.5,2767.9,3.61276]
[1739794847655,3.61188,2768.7,2768.1,4.79157]
[1739794848024,3.61156,2768.9,2768.2,3.69481604]
[1739794848283,3.61161,2768.9,2768.3,3.6123]
[1739794848418,3.61161,2768.9,2768.4,0.08235998]
[1739794848779,3.61169,2768.8,2768.4,0.08235998]
[1739794849135,3.61187,2768.7,2768.4,0.08235998]
[1739794849282,3.61187,2768.7,2768.5,0.08235194]
[1739794849582,3.61193,2768.6,2768.1,4.79149]
[1739794850414,3.61214,2768.5,2768.1,1.179]
[1739794850593,3.61193,2768.6,2768.1,1.179]
[1739794851318,3.61212,2768.5,2768.1,1.179]
[1739794851699,3.61216,2768.5,2768.1,1.179]
[1739794852163,7.585526,2768.5,2767.9,4.79177]
[1739794852363,3.6122,2768.4,2767.9,4.79177]
[1739794853920,3.6122,2768.4,2768.0,0.08084709]
[1739794855498,8.46743,2768.6,2768.0,0.08084709]
[1739794855833,3.6121,2768.5,2768.0,3.69343709]
[1739794855967,3.61201,2768.6,2768.0,3.69343709]
[1739794856168,7.22406,2768.6,2768.0,3.69343709]
[1739794856472,3.61209,2768.5,2768.0,3.69343709]
[1739794856979,3.61228,2768.4,2768.0,0.08084709]
[1739794857185,7.22459,2768.4,2768.0,0.08084709]
[1739794857401,3.61228,2768.4,2768.0,0.08084709]
[1739794858302,3.61228,2768.4,2768.0,3.69350709]
[1739794858620,3.61228,2768.4,2768.0,0.08084709]
[1739794859181,3.61202,2768.6,2768.0,3.69353709]
[1739794859706,3.61212,2768.5,2768.0,3.69353709]
[1739794860071,3.61206,2768.5,2768.0,3.69349709]
[1739794860456,3.6122,2768.4,2768.0,0.08084709]
[1739794861442,3.61206,2768.5,2768.0,3.69351709]
[1739794861782,3.61219,2768.4,2768.0,3.69351709]
[1739794862617,3.61206,2768.5,2768.0,3.69351709]
[1739794863018,3.6122,2768.4,2768.0,3.69351709]
[1739794863186,3.61212,2768.5,2768.0,3.69351709]
[1739794863740,3.61225,2768.4,2768.0,0.08084709]
[1739794863938,3.61237,2768.3,2768.0,0.08084709]
[1739794864498,3.6122,2768.4,2768.0,0.08084709]
[1739794864697,3.6122,2768.4,2768.0,3.69354709]
[1739794865150,3.6122,2768.4,2768.0,0.08084709]
[1739794865344,3.61235,2768.3,2768.0,0.08084709]
[1739794865753,3.61231,2768.4,2768.0,0.08084709]
[1739794866827,3.61231,2768.4,2768.0,3.69354709]
[1739794867193,3.61206,2768.5,2768.1,3.61252]
[1739794867646,3.61206,2768.5,2768.2,0.08074669]
[1739794867952,3.0075,2769.0,2768.2,0.08074669]
[1739794867953,3.61142,2769.0,2768.3,1.2413]
[1739794868245,3.61143,2769.0,2768.6,1.2413]
[1739794868728,3.61123,2769.2,2768.7,3.69243653]
[1739794868930,0.1514834,2769.5,2768.8,1.2413]
[1739794869091,0.1514834,2769.5,2769.2,3.61107]
[1739794869289,0.1514834,2769.5,2769.3,0.08045726]
[1739794869507,0.1514834,2769.5,2769.2,3.61107]
[1739794869725,0.1514834,2769.5,2769.1,1.2429]
[1739794869726,3.7623434,2769.5,2769.3,0.08045726]
[1739794869948,3.61089,2769.4,2769.1,1.2429]
[1739794870230,3.61154,2768.9,2768.8,8.87]
[1739794870443,3.61169,2768.8,2768.5,1.2429]
[1739794871220,3.61149,2769.0,2768.5,1.2429]
[1739794871689,3.61123,2769.2,2768.6,3.61183]
[1739794871895,3.61102,2769.3,2768.9,1.2429]
[1739794872231,3.61123,2769.2,2768.9,1.2429]
[1739794872534,3.61102,2769.3,2768.9,1.2429]
[1739794872743,3.7623134,2769.5,2769.0,3.61129]
[1739794872946,0.1514834,2769.5,2769.0,7.22261]
[1739794873229,0.1514834,2769.5,2769.1,3.61123]
[1739794873396,0.1514834,2769.5,2769.2,3.61111]
[1739794874794,0.1514834,2769.5,2769.1,3.61119]
[1739794874996,0.1514834,2769.5,2769.1,3.61128]
[1739794875197,0.1514834,2769.5,2769.1,3.61118]
[1739794875556,3.61097,2769.4,2768.9,1.2429]
[1739794875737,3.61102,2769.3,2768.9,1.2429]
[1739794876036,3.61128,2769.1,2768.7,1.2043]
[1739794876232,3.61141,2769.0,2768.7,1.2043]
[1739794876623,1.2406,2769.4,2768.7,1.2043]
[1739794876935,3.61147,2769.0,2768.7,1.2043]
[1739794877093,3.61167,2768.8,2768.4,1.2057]
[1739794877728,3.61181,2768.7,2768.4,1.2057]
[1739794877930,3.61167,2768.8,2768.4,1.2057]
[1739794878239,3.6115,2769.0,2768.5,3.61206]
[1739794878403,7.223,2769.0,2768.5,4.093836]
[1739794878605,3.6115,2769.0,2768.5,0.481776]
[1739794878926,3.61163,2768.9,2768.5,0.481776]
[1739794879098,3.6115,2769.0,2768.5,0.481776]
[1739794879326,3.61168,2768.8,2768.4,1.2057]
[1739794880063,3.61168,2768.8,2768.2,0.55]
[1739794880234,1.196,2768.9,2768.1,1.2031]
[1739794880566,7.22455,2768.4,2768.1,1.2031]
[1739794881135,3.61234,2768.3,2768.1,1.2031]
[1739794881758,3.61206,2768.5,2768.1,1.2031]
[1739794881964,3.61219,2768.4,2768.1,1.2031]
[1739794882941,3.61237,2768.3,2768.1,1.2031]
[1739794883378,3.61221,2768.4,2768.1,1.2031]
[1739794884079,3.61221,2768.4,2768.2,0.0731777]
[1739794885086,3.61192,2768.7,2768.2,0.0731777]
[1739794885268,3.6116,2768.9,2768.3,3.61219]
[1739794885453,3.6116,2768.9,2768.5,1.2218]
[1739794885658,3.61167,2768.8,2768.5,1.2218]
[1739794885865,3.61167,2768.8,2768.6,0.0734113]
[1739794886071,3.6118,2768.7,2768.6,0.0734113]
[1739794886379,3.61154,2768.9,2768.6,0.0734113]
[1739794886588,3.61145,2769.0,2768.6,0.0734113]
[1739794886898,3.61161,2768.9,2768.6,0.0734113]
[1739794887503,3.61145,2769.0,2768.6,0.0734113]
[1739794887802,3.61155,2768.9,2768.6,0.0734113]
[1739794888263,3.61167,2768.8,2768.6,0.0734113]
[1739794888463,3.61153,2769.0,2768.6,0.0734113]
[1739794888779,3.61151,2769.0,2768.6,0.0734113]
[1739794889092,3.61154,2768.9,2768.6,0.0734113]